Workbook

Sheet Vejledning
A1: Vejledning til regneark, lønberegning.
A3: Regnearket anvendes til kontrol af lønsedler.
A4: Regnearket kan anvendes af vejledere og konsulenter ansat ved Ungdommens Uddannelsesvejlednng i Odense.
A6: Find det relevante ark i regnearket
A7: UU vejledere for vejledere ansat på Grundløn 31
A8: UU konsulenter. Når man har 8 års erfaring efter endt uddannelse og har genneført vejlederuddannelsen ansættes man som konsulent på grundløn 45.
A10: Der kan kun indtastes i de gule felter!
A12: Beskæftigelsesgrad indtastes med ugentligt timetal (fremgår af lønsedlen)
A13: Grundløn og andre tillæg gældende for alle fremkommer automatisk.
A14: For vejledere indtastes tillæg for anciennitet ved at taste 1 ved relevant anciennitet (fremgår af lønsedlen)
A15: Funktions- og kvalifikationsløn indtastes med 1 ud for funktionen/kvalifikationen
A17: Nogle vejledere og konsulenter har personlige tillæg. Disse indtastes med det månedlige beløb, der fremgår af lønsedlen.
A18: Der kan evt. indtastes navn på disse tillæg.
A20: Månedslønnen fremkommer automatisk og er sammenlignelig med lønsedlen
A22: Bemærk: Der kan fremkomme øreafvigelser p.g.a. afrunding.
A24: Kørselsgodtgørelse o.l. udbetales konkret og fremgår ikke af lønberegneren
A26: Kommentarer eller rettelser er velkomne, kontakt Bo Tryggedsson, Odense Lærerforening.

Sheet UU vejledere
A1: Lønberegning niveau | C1: =satser!F1 -> 01.04.2018
A2: UU Vejledere
A5: Navn:
A6: Måned
A8: Beskæftigelsesgrad (indsæt ugentligt timetal) | B8: 37
C9: Månedsløn
A10: Grundløn trin 31 | B10: 31 | C10: =satser!B11*B8/37 -> 27392
A11: Grundlønstillæg - lærer | C11: =IF(B13=1,"",satser!I3*B8/37) -> 340.41875
A12: Anciennitetstillæg (trin 31-35) | C12: =IF((B12+B13)>1,"Fejl: kun et tillæg",IF(B12=1,satser!D15*B8/37,"")) -> 
A13: Anciennitetstillæg (trin 31-40) | C13: =IF((B12+B13)>1,"Fejl: kun et tillæg",IF(B13=1,satser!D20*B8/37,"")) -> 
A14: Anciennitetstillæg - lærer | C14: =IF(AND(B14=1,B13=1),satser!I4*B8/37,"") -> 
A17: Funktions- og kvalifikationsløn: Tast 1 i det gule felt, hvis omfattet:
A18: Vejlederfunktion UUO | C18: =satser!I12*B8/37 -> 2042.51
A19: Tillidsrep. UUO | C19: =(IF(B19>1,"Fejl:kun et tillæg",IF(B19>0,B19*satser!I15,""))) -> 
A20: AMR funktion | C20: =(IF(B20>1,"Fejl:kun et tillæg",IF(B20>0,B20*satser!I16,""))) -> 
A22: Vejlederuddannelse | C22: =(IF(B22>1,"Fejl:kun et tillæg",IF(B22>0,B22*satser!I18*B8/37,""))) -> 
A23: Vilje til faglig samt metodemæssig udvikling. Fleksibel og forandringsvillig | C23: =(IF(B23+B24>1,"Fejl:kun et tillæg",IF(B23>0,B23*satser!I19*B8/37,""))) -> 
A24: Særlig fagområde | C24: =(IF(B24+B23>1,"Fejl:kun et tillæg",IF(B24>0,B24*satser!I20*B8/37,""))) -> 
A26: Andre tillæg (fx personlig erfaring) Indtast beløb fra lønseddel
A30: Fast løn i alt | C30: =SUM(C10:C29) -> 29774.92875

Sheet UU konsulenter
A1: Lønberegning niveau | C1: =satser!F1 -> 01.04.2018
A2: UU Konsulenter
A5: Navn:
A6: Måned
A8: Beskæftigelsesgrad (indsæt ugentligt timetal) | B8: 37
C9: Månedsløn
A10: Grundløn trin 45 | B10: 45 | C10: =satser!B25*B8/37 -> 35091.58
A11: Grundlønstillæg - skolekonsulent | C11: =satser!I5 -> 1361.675
A14: Funktions- og kvalifikationsløn: Tast 1 i det gule felt, hvis omfattet:
A15: Konsul.funk. UUO med 8 års anc. | C15: =(IF(B15+B16>1,"Fejl:kun et tillæg",IF(B15>0,B15*satser!J13*B8/37,""))) -> 
A16: Konsulentfunk. UUO | C16: =(IF(B16+B15>1,"Fejl:kun et tillæg",IF(B16>0,B16*satser!J14*B8/37,""))) -> 
A17: Tillidsrep. UUO | C17: =(IF(B17>1,"Fejl:kun et tillæg",IF(B17>0,B17*satser!J15,""))) -> 
A18: AMR funktion | C18: =(IF(B18>1,"Fejl:kun et tillæg",IF(B18>0,B18*satser!J16,""))) -> 
A20: Vilje til faglig samt metodemæssig udvikling. Fleksibel og forandringsvillig | C20: =(IF(B20+B21>1,"Fejl:kun et tillæg",IF(B20>0,B20*satser!I19*B8/37,""))) -> 
A21: Særlig fagområde | C21: =(IF(B21+B20>1,"Fejl:kun et tillæg",IF(B21>0,B21*satser!I20*B8/37,""))) -> 
A23: Andre tillæg (fx personlig erfaring) Indtast beløb fra lønseddel
A27: Fast løn i alt | C27: =SUM(C10:C26) -> 36453.255

Sheet satser
A1: Satser pr. | F1: 01.04.2018
G2: Grundbeløb | I2: Månedligt beløb pr. | J2: =F1 -> 01.04.2018
F3: Grundlønstillæg - lærer | G3: 3000 | I3: =G3*C28/12 -> 340.41875
F4: Anciennitetstillæg - lærer | G4: 10000 | I4: =G4*C28/12 -> 1134.729167
F5: Grundlønstillæg - skolekonsulent | H5: 12000 | I5: =H5*C28/12 -> 1361.675
A6: Løntrin | B6: Pr. måned | C6: Anciennitetstillæg | F6: Stillingstillæg - lærer | H6: 13000 | I6: =H6*C28/12 -> 1475.147917
F7: Pension - stillingstilæg lærer | H7: 2202 | I7: =H7*C28/12 -> 249.8673625 | J7: Beløbet er 17,3% af 13.000 fratrukket særlig ferie
G10: Grundbeløb | I10: Månedligt beløb pr. | J10: =F1 -> 01.04.2018
A11: 31 | B11: 27392 | F11: Funktions- og kvalifikationsløn: | G11: Vejledere | H11: Konsulenter | I11: Vejledere | J11: Konsulenter
A12: 32 | B12: 27833.42 | F12: Vejlederfunktion UUO | G12: 18000 | I12: =ROUND(G12*$C$28/12,2) -> 2042.51
A13: 33 | B13: 28283.75 | F13: Konsul.funk. UUO med 8 års anc. | H13: 1000 | J13: =ROUND(H13*$C$28/12,2) -> 113.47
A14: 34 | B14: 28743.92 | F14: Konsulentfunk. UUO | H14: 2000 | J14: =ROUND(H14*$C$28/12,2) -> 226.95
A15: 35 | B15: 29212.92 | C15: 31 - 35 | D15: =B15-B11 -> 1820.92 | F15: TR-tillæg | G15: 5350 | H15: 5500 | I15: =ROUND(G15*$C$28/12,2) -> 607.08 | J15: =ROUND(H15*$C$28/12,2) -> 624.1
A16: 36 | B16: 29691.92 | F16: AMR funktion | G16: 5350 | H16: 5000 | I16: =ROUND(G16*$C$28/12,2) -> 607.08 | J16: =ROUND(H16*$C$28/12,2) -> 567.36
A17: 37 | B17: 30180.33
A18: 38 | B18: 30701.17 | F18: Vejlederuddannelse | G18: 10500 | I18: =ROUND(G18*$C$28/12,2) -> 1191.47
A19: 39 | B19: 31220.17 | F19: Vilje til faglig samt metodemæssig udvikling. Fleksibel og forandringsvillig | G19: 2500 | H19: 2500 | I19: =ROUND(G19*$C$28/12,2) -> 283.68 | J19: =ROUND(H19*$C$28/12,2) -> 283.68
A20: 40 | B20: 31749.83 | C20: 31 - 40 | D20: =B20-B11 -> 4357.83 | F20: Særlig fagområde | G20: 6000 | H20: 6000 | I20: =ROUND(G20*$C$28/12,2) -> 680.84 | J20: =ROUND(H20*$C$28/12,2) -> 680.84
A21: 41 | B21: 32290.08
A22: 42 | B22: 32841.08
A23: 43 | B23: 33571
A24: 44 | B24: 34321
A25: 45 | B25: 35091.58
A28: Reguleringsfaktor: | C28: 1.361675
